Cogmind - Beta 11 X11 @@@ ROGUE MODE // 2022.03.07 @ 17:44:13 Player: Terminus Result: Exoskeleton Destroyed Performance ------------- Evolutions (9) 4500 Regions Visited (32) 6400 Robots Destroyed (369) 1845 Value Destroyed (18516) 18516 Prototype IDs (74) 1480 Alien Tech Used (9) 1800 Bonus (30203) 30203 TOTAL SCORE: 64744 Bonus ------- Triggered Max Security 4000 High Alert Combat Kills 3764 Follower Combat Kills 2356 Network Hubs Disabled 200 Met Data Miner 300 Met Zhirov 300 Met Warlord at Base 500 MAIN.C Attacked Warlord 500 Warlord Defense Kill 1140 Met R17 at Cetus 500 Used Core Reset Matrix 3000 Scanned by Researcher 500 Pursued by Intercept 1000 Integrated Exoskeleton 5000 Destroyed MAIN.C Guards 500 Met MAIN.C 5000 Destroyed MAIN.C Shell 5000 Friendly Fire -3357 Cogmind --------- Core Integrity 0/1600 Matter 275/300 Energy 72/940 System Corruption 11% Temperature Warning (379) Movement Walking (90) Ox1 Location -1/Command Parts ------- > --- POWER (1) -------- Zero-point Reactor > --- PROPULSION (3) --- Sigix Exoskeleton > --- UTILITY (6) ------ Large Storage Unit Experimental Energy Well Experimental Targeting Computer Advanced Force Field > --- WEAPON (3) ------- Sigix Sheargun Sigix Sheargun Sigix Sheargun > --- INVENTORY (15) --- Experimental Energy Well (600) Experimental Energy Well (600) Experimental Energy Well (600) Transdimensional Reconstructor Transdimensional Reconstructor Transdimensional Reconstructor Transdimensional Reconstructor High-powered Transdimensional Reconstructor Null Cannon Peak State ------------ > --- POWER ------------ Graviton Reactor Vortex Chain Reactor > --- PROPULSION ------- Flexi-carbon Leg Biometal Leg Biometal Leg Enhanced Biometal Leg Experimental Myomer Leg > --- UTILITY ---------- Coolant Network Large Storage Unit Advanced Signal Interpreter Experimental Targeting Computer Advanced Target Analyzer Experimental Core Analyzer Layered Medium Armor Plating Experimental Force Field Advanced Hacking Suite > --- WEAPON ----------- Core Stripper Sigix Broadsword > --- INVENTORY -------- Vortex Chain Reactor Flexi-carbon Leg Experimental Cooling System Medium Storage Unit Advanced Energy Well Advanced Particle Charger Advanced Transmission Jammer System Mapper Thief Drone Bay Transdimensional Reconstructor Transdimensional Reconstructor Nova Cannon Advanced Micro-nuke Launcher Improved Plasma Cutter [Rating: 204] Favorites ----------- Power Cooled Ion Engine Engine Cooled Ion Engine Power Core Neutrino Core Reactor Quantum Reactor Propulsion Flexi-carbon Leg Leg Flexi-carbon Leg Utility Large Storage Unit Device Cooling System Storage Large Storage Unit Processor Advanced Targeting Computer Hackware Advanced Hacking Suite Protection Centrium Medium Armor Plating Weapon Quantum Rifle Energy Gun Quantum Rifle Energy Cannon Particle Cannon Ballistic Gun Assault Rifle Launcher Advanced Micro-nuke Launcher Special Weapon RU-N14's Throwing Claymores v3 Impact Weapon Core Stripper Slashing Weapon Sigix Broadsword Build | -11 -10 -10 -9 -9 -8 -7 -7 -7 -7 -6 -6 -6 -6 -6 -6 -5 -5 -5 -5 -4 -4 -4 -4 -4 -3 -3 -3 -3 -2 -2 -1 -1 ------- Run | Scr Mat Min Mat Min Mat Fac Low Low Dat Pro Fac Ext Cet Arc Hub Fac Upp Upp Zhi Pro Fac Upp Upp War Pro Res Qua Sec Res Tes Acc Com Slots Evolved 18 | . . . 2 . 2 2 . . . . 2 . . . . 2 . . . . 2 . . . . 2 . . 2 . 2 . Power 2 | . . . . . . . . . . . 1 . . . . . . . . . . . . . . 1 . . . . . . Propulsion 3 | . . . . . 1 . . . . . 1 . . . . . . . . . 1 . . . . . . . . . . . Utility 11 | . . . 1 . 1 2 . . . . . . . . . 2 . . . . 1 . . . . 1 . . 1 . 2 . Weapon 2 | . . . 1 . . . . . . . . . . . . . . . . . . . . . . . . . 1 . . . Parts Attached 475 | 6 10 3 23 2 26 25 11 9 . 14 29 33 10 3 15 35 2 3 12 19 32 3 . 29 7 15 36 35 4 2 5 17 Power 36 | 1 1 1 3 . 1 1 1 . . 1 4 3 1 . . 1 . . 2 1 3 . . 3 . 1 1 3 . . 1 2 Engine 19 | 1 1 1 3 . 1 1 1 . . 1 2 3 . . . 1 . . 1 1 . . . 1 . . . . . . . . Core 5 | . . . . . . . . . . . 2 . . . . . . . . . 1 . . 2 . . . . . . . . Reactor 12 | . . . . . . . . . . . . . 1 . . . . . 1 . 2 . . . . 1 1 3 . . 1 2 Propulsion 71 | 2 2 1 3 . 9 5 . . . 3 4 8 1 1 1 1 1 . . . 7 . . 6 2 4 4 6 . . . . Treads . | . . . . . . . . . . . . . . . . . . . . . . . . . . . . . . . . . Leg 71 | 2 2 1 3 . 9 5 . . . 3 4 8 1 1 1 1 1 . . . 7 . . 6 2 4 4 6 . . . . Wheel . | . . . . . . . . . . . . . . . . . . . . . . . . . . . . . . . . . Hover . | . . . . . . . . . . . . . . . . . . . . . . . . . . . . . . . . . Flight . | . . . . . . . . . . . . . . . . . . . . . . . . . . . . . . . . . Utility 249 | 1 2 . 9 2 5 10 6 7 . 8 12 14 6 2 10 26 1 3 6 14 20 3 . 16 5 5 20 19 3 . 4 10 Device 147 | . 1 . 8 2 3 5 4 3 . 6 8 7 4 2 10 12 1 2 1 11 9 2 . 10 2 3 13 11 1 . 2 4 Storage 16 | 1 1 . 1 . . . . . . . . 1 . . . 1 . . 1 . . . . . . . 1 3 . . 1 5 Processor 16 | . . . . . . 2 . . . . . 1 1 . . 2 . . . . 2 . . 1 . . 1 3 1 . 1 1 Hackware 3 | . . . . . . . . . . . . . . . . 1 . . 1 . . . . . . . . . 1 . . . Protection 67 | . . . . . 2 3 2 4 . 2 4 5 1 . . 10 . 1 3 3 9 1 . 5 3 2 5 2 . . . . Artifact . | . . . . . . . . . . . . . . . . . . . . . . . . . . . . . . . . . Weapon 119 | 2 5 1 8 . 11 9 4 2 . 2 9 8 2 . 4 7 . . 4 4 2 . . 4 . 5 11 7 1 2 . 5 Energy Gun 57 | 1 . . 5 . 3 5 . . . 1 1 8 1 . 2 6 . . 4 4 2 . . 3 . 2 3 . 1 1 . 4 Energy Cannon 37 | . 2 . 3 . 5 1 2 2 . 1 8 . . . 2 1 . . . . . . . . . 2 4 2 . 1 . 1 Ballistic Gun 6 | 1 2 1 . . . . . . . . . . . . . . . . . . . . . . . . . 2 . . . . Ballistic Cannon . | . . . . . . . . . . . . . . . . . . . . . . . . . . . . . . . . . Launcher 10 | . 1 . . . 3 1 1 . . . . . . . . . . . . . . . . . . 1 1 2 . . . . Special Weapon 1 | . . . . . . . . . . . . . . . . . . . . . . . . 1 . . . . . . . . Impact Weapon 2 | . . . . . . . . . . . . . . . . . . . . . . . . . . . 1 1 . . . . Slashing Weapon 6 | . . . . . . 2 1 . . . . . 1 . . . . . . . . . . . . . 2 . . . . . Piercing Weapon . | . . . . . . . . . . . . . . . . . . . . . . . . . . . . . . . . . Special Melee Weapon . | . . . . . . . . . . . . . . . . . . . . . . . . . . . . . . . . . Unidentified Prototypes 41 | . . . 4 1 2 1 1 . . 1 1 . 1 1 . 1 . . 4 . . . . 5 1 2 7 2 1 1 . 4 Corrupted Parts 3 | . . . . . . . . . . 1 . . . . . . . . . . . . . 1 1 . . . . . . . System Corruption 20 | . . . . . . . . . . 4 . . . . . . . . . . . . . 9 7 . . . . . . . Parts Lost 55 | . . . . . . . 4 2 . 3 . 1 . . 2 5 1 1 . 5 4 . . 3 1 7 3 12 . . . 1 Power 6 | . . . . . . . 1 . . . . . . . 1 . . . . 1 1 . . . . . . 2 . . . . Propulsion 15 | . . . . . . . . . . 2 . . . . . 1 1 . . 1 2 . . . . 4 . 4 . . . . Utility 19 | . . . . . . . 1 1 . . . 1 . . . 2 . 1 . 2 1 . . 1 1 2 2 3 . . . 1 Weapon 15 | . . . . . . . 2 1 . 1 . . . . 1 2 . . . 1 . . . 2 . 1 1 3 . . . . Highest Loss Streak 9 | . . . . . . . 3 1 . 2 . 1 . . 2 2 1 1 . 3 1 . . 3 1 6 1 9 . . . 1 To Critical Strikes 4 | . . . . . . . . . . 1 . . . . . . . . . . . . . . . . . 3 . . . . Average Slot Usage (%) 96 | . 96 100 99 100 98 99 96 98 92 95 100 100 100 100 99 99 99 99 78 96 91 100 100 99 98 93 86 81 81 81 77 72 Engine 6 | . 14 14 10 11 9 7 6 7 7 7 8 11 7 6 5 5 5 5 5 4 4 . . . . . . . . . . . Core 1 | . . . . . . . . . . . 3 . . . . . . . . . . 5 5 6 10 7 2 . . . . . Reactor 2 | . . . . . . . . . . . . . 4 6 6 5 5 5 5 5 4 5 5 2 . 1 6 9 9 9 1 . Leg 22 | . 28 28 22 22 26 23 22 21 21 21 25 25 25 25 25 21 21 22 22 18 16 25 25 25 25 21 19 18 9 9 7 7 Device 16 | . 10 14 21 22 17 21 20 19 21 18 16 15 12 12 12 15 15 10 11 12 18 20 20 17 16 17 16 6 1 . 13 13 Storage 7 | . 14 14 11 11 9 7 7 7 7 7 6 6 6 6 6 5 5 5 5 5 5 5 5 5 5 4 4 6 9 9 13 15 Processor 11 | . . . . . . 15 14 14 14 14 12 13 18 18 18 16 22 22 19 16 15 15 15 15 15 13 17 19 21 27 18 13 Hackware 1 | . . . . . . . . . . . . . . . . 3 . . 1 5 5 5 5 5 5 4 4 2 4 . . . Protection 1 | . . . . . 8 . . 1 . 2 1 1 . . . 1 . 5 4 3 1 . . 2 2 4 1 2 . . . . Energy Gun 13 | . . . 15 . . 17 13 5 . 4 10 23 24 25 24 21 22 22 1 22 19 20 20 20 20 14 6 5 27 27 23 21 Energy Cannon 8 | . 13 14 17 33 26 3 5 15 21 19 13 1 . . . . . . . . . . . . . 2 1 4 . . . . Ballistic Gun 1 | . 14 14 . . . . . . . . . . . . . . . . . . . . . . . . . 1 . . . . Naked Turns . | . . . . . . . . . . . . . . . . . . . . . . . . . . . . . . . . . Heaviest Build 127 | 13 31 31 44 44 51 47 48 57 53 66 78 80 70 70 74 87 80 79 79 87 89 67 67 87 88 115 116 127 59 58 60 61 Greatest Support 139 | 20 20 20 20 20 40 54 54 54 54 54 64 80 80 93 96 96 96 93 93 93 113 113 113 128 128 133 139 131 60 60 60 60 Greatest Overweight (x) 2 | . 1 1 2 2 1 1 . 1 . 1 1 1 . . . . . . . 1 1 . . . . 1 1 1 . . . 1 Average Overweight (x) . | . . 1 1 2 1 . . . . . . . . . . . . . . . . . . . . . . . . . . . Largest Inventory Capacity 15 | 8 15 15 15 15 15 15 15 15 15 15 15 15 15 15 15 15 15 15 15 15 15 15 15 15 15 15 15 15 15 15 15 15 Average Capacity 14 | 6 11 15 15 15 15 15 15 15 15 15 15 15 15 15 15 15 15 15 15 15 15 15 15 15 15 15 15 14 15 15 15 15 Most Carried 15 | 2 15 15 15 15 15 15 15 13 12 15 15 15 15 15 15 15 15 15 15 15 15 15 15 15 15 15 15 15 13 15 15 15 Average Carried 14 | 1 11 14 14 14 14 14 12 12 12 13 14 14 14 15 15 14 14 14 14 14 14 14 15 14 14 14 14 13 12 14 13 13 Final Capacity 15 | 8 15 15 15 15 15 15 15 15 15 15 15 15 15 15 15 15 15 15 15 15 15 15 15 15 15 15 15 15 15 15 15 15 Final Carried 15 | 2 15 15 15 15 15 15 13 12 12 15 15 15 15 15 15 15 15 14 15 15 15 15 15 15 14 14 15 14 13 15 15 9 Class Distribution -------------------- 37% | Scavenger-Gunner 11% | Gunner 8% | Mutant 7% | Tank 7% | Scavenger-Skirmisher 7% | Skirmisher 7% | Scavenger-Mutant 5% | Alien-Sigix 4% | Generator-Mutant Dominant Class ---------------- Mutant | -10/Materials Commander-Mutant | -10/Mines Gunner | -9/Materials Gunner | -9/Mines Tank | -8/Materials Skirmisher | -7/Factory Skirmisher | -7/Lower Caves Skirmisher | -7/Lower Caves Skirmisher | -7/Data Miner Skirmisher | -6/Proximity Caves Scavenger-Skirmisher | -6/Factory Scavenger-Gunner | -6/Extension Scavenger-Gunner | -6/Cetus Scavenger-Gunner | -6/Archives Scavenger-Gunner | -6/Hub_04(d) Scavenger-Gunner | -5/Factory Scavenger-Gunner | -5/Upper Caves Scavenger-Gunner | -5/Upper Caves Scavenger-Mutant | -5/Zhirov Scavenger-Gunner | -4/Proximity Caves Scavenger-Gunner | -4/Factory Scavenger-Gunner | -4/Upper Caves Scavenger-Gunner | -4/Upper Caves Scavenger-Gunner | -4/Warlord Scavenger-Gunner | -3/Proximity Caves Scavenger-Mutant | -3/Research Generator-Mutant | -3/Quarantine Generator-Mutant | -3/Section 7 Alien-Sigix | -2/Research Alien-Sigix | -2/Testing Alien-Sigix | -1/Access Alien-Sigix | -1/Command Resources | -11 -10 -10 -9 -9 -8 -7 -7 -7 -7 -6 -6 -6 -6 -6 -6 -5 -5 -5 -5 -4 -4 -4 -4 -4 -3 -3 -3 -3 -2 -2 -1 -1 ----------- Run | Scr Mat Min Mat Min Mat Fac Low Low Dat Pro Fac Ext Cet Arc Hub Fac Upp Upp Zhi Pro Fac Upp Upp War Pro Res Qua Sec Res Tes Acc Com Matter Collected 5361 | 169 359 51 236 20 293 281 170 85 . 125 226 423 90 40 120 346 28 25 . 352 307 36 20 311 51 60 385 497 40 . 70 145 Remotely . | . . . . . . . . . . . . . . . . . . . . . . . . . . . . . . . . . Salvage Created 20472 | . 732 39 1061 107 1574 745 488 274 . 406 1255 832 334 249 553 1447 116 229 . 1013 1394 . . 349 470 320 1601 1536 550 . 1087 1711 Parts 886 | . 37 3 73 4 95 33 8 11 . 14 42 31 20 5 6 53 8 4 . 18 51 . . 8 14 13 81 101 17 . 64 72 Haulers Intercepted 25 | . 2 . 6 . 5 1 . . . . 2 1 . . 1 1 . . . . 2 . . . . 1 1 1 1 . . . Recyclers Shooed 12 | . 2 . 1 . 3 . . . . . . . . . . 3 . . . 1 1 . . . . . 1 . . . . . Parts Field Recycled . | . . . . . . . . . . . . . . . . . . . . . . . . . . . . . . . . . Retrieved Matter . | . . . . . . . . . . . . . . . . . . . . . . . . . . . . . . . . . Parts Self-Destructed 227 | . . . . . . . 13 11 . 26 . . . . . . 8 4 . 20 . . . 130 15 . . . . . . . Prevented 13 | . . . . . . . . . . 2 . . . . . . . . . 1 . . . 10 . . . . . . . . Kills | -11 -10 -10 -9 -9 -8 -7 -7 -7 -7 -6 -6 -6 -6 -6 -6 -5 -5 -5 -5 -4 -4 -4 -4 -4 -3 -3 -3 -3 -2 -2 -1 -1 ------- Run | Scr Mat Min Mat Min Mat Fac Low Low Dat Pro Fac Ext Cet Arc Hub Fac Upp Upp Zhi Pro Fac Upp Upp War Pro Res Qua Sec Res Tes Acc Com Combat Hostiles Destroyed 256 | . 10 1 14 2 24 14 9 7 . 7 12 10 4 3 6 17 5 3 . 11 15 . . 7 6 3 18 23 4 . 11 10 Melee 16 | . . . . . . . . . . . . . . . . . . . . . . . . . . . 8 8 . . . . Guns 130 | . 4 . 7 . 1 9 3 . . 2 4 8 2 3 4 14 5 1 . 9 12 . . 7 5 2 2 3 4 . 9 10 Cannons 60 | . 4 1 7 2 17 . 3 6 . 5 6 . . . . . . . . . . . . . . . 2 7 . . . . AOE 27 | . 2 . . . 4 4 3 . . . . . . . . . . . . . 3 . . . . . 4 5 . . 2 . Classes Destroyed 23 | . 6 . 2 1 3 4 1 . . . 1 . . . . . . . . . . . . 1 1 . 2 . . . 1 . Worker 8 | . . . . . 1 1 . . . . . . . . . 1 . . . . 3 . . . . . . 1 1 . . . Builder 11 | . . . . . 1 2 . . . . 1 . . . . 2 . . . . 2 . . . . . 1 2 . . . . Tunneler 1 | . . . 1 . . . . . . . . . . . . . . . . . . . . . . . . . . . . . Hauler 25 | . 2 . 6 . 5 1 . . . . 2 1 . . 1 1 . . . . 2 . . . . 1 1 1 1 . . . Recycler 15 | . 5 . 1 . 2 1 . . . . 1 . . . . 2 . . . 1 1 . . . . . 1 . . . . . Mechanic 2 | . . . . . . 1 . . . . . . . . . . . . . . . . . . . . . . . . 1 . Operator 10 | . 1 . 2 . . . . . . . 1 1 . . 2 2 . . . . . . . . . . 1 . . . . . Watcher 34 | . 3 . 3 . 3 1 . . . . 3 2 1 . 1 5 . . . 2 2 . . . . 1 3 . 2 . 2 . Swarmer 44 | . 6 . 5 . 5 . 1 3 . . . . 1 . . 6 5 . . . . . . . . . 5 7 . . . . Grunt 79 | . 4 1 4 1 10 3 4 1 . 5 5 4 . . 1 4 . . . 8 8 . . 3 3 . 3 4 1 . 2 . Brawler 8 | . . . . 1 . . 2 . . . . 2 . . . . . 2 . 1 . . . . . . . . . . . . Duelist 2 | . . . . . . . 1 . . 1 . . . . . . . . . . . . . . . . . . . . . . Protector 4 | . . . . . . 1 . . . . . . . . . . . . . . . . . 1 1 . . . . . 1 . Researcher 3 | . . . . . . . . . . . . . . . . . . . . . . . . . . . 2 1 . . . . Sentry 31 | . . . 5 . 7 1 1 1 . 1 1 2 . 3 3 2 . 1 . . 1 . . . 1 . . 1 . . . . Demolisher 1 | . . . . . . . . . . . . . . . . . . . . . . . . . 1 . . . . . . . Specialist 8 | . . . . . . 3 . . . . 2 . . . . . . . . . . . . . . . 3 . . . . . Hunter 16 | . . . . . 2 5 . 1 . . . . . . 2 1 . . . . . . . . . . . 3 . . 2 . Programmer 38 | . . . . . . 1 . 1 . . 3 . . . . 3 . . . 2 6 . . 1 . 3 6 6 . . 4 2 Behemoth 5 | . . . . . . . . . . . 1 2 . . . 1 . . . . . . . . . . . . . . 1 . Cetus Guard 3 | . . . . . . . . . . . . . 3 . . . . . . . . . . . . . . . . . . . M Guard 2 | . . . . . . . . . . . . . . . . . . . . . . . . . . . . . . . . 2 M Shell/Atk 1 | . . . . . . . . . . . . . . . . . . . . . . . . . . . . . . . . 1 M Shell/Def 2 | . . . . . . . . . . . . . . . . . . . . . . . . . . . . . . . . 2 Tracker 1 | . . . . . . . . . . . . . . . . . . . . . . . . . . . . . 1 . . . Combat Programmer 4 | . . . . . . . . . . . . . . . . . . . . . . . . . . . . . 2 . . 2 Investigator 1 | . . . . . . . . . . . . . . . . . . . . . . . . . . . . 1 . . . . Striker 1 | . . . . . . . . . . . . . . . . . . . . . . . . . . . . . . . 1 . Executioner 4 | . . . . . . . . . . . . . . . . . . . . . . . . 2 . . . 2 . . . . Fortress 1 | . . . . . . . . . . . . . . . . . . . . . . . . . . . 1 . . . . . Packrat 1 | . . . . . . . 1 . . . . . . . . . . . . . . . . . . . . . . . . . Thug 1 | . . . 1 . . . . . . . . . . . . . . . . . . . . . . . . . . . . . Best Kill Streak 14 | . 7 1 4 2 6 14 6 5 . 3 3 4 3 3 2 6 5 3 . 4 8 . . 3 3 3 5 5 3 . 6 4 Combat Bots Only 9 | . 3 1 4 2 3 9 6 5 . 3 2 4 2 3 2 6 5 3 . 4 6 . . 3 3 3 5 4 3 . 4 4 Max Kills in Single Turn 5 | . 2 1 2 1 3 3 2 1 . 1 2 1 1 1 1 2 3 1 . 2 5 . . 2 1 1 4 4 2 . 3 1 Gunslinging 2 | . . . . . . 1 . . . . . . . . . 1 2 . . 1 . . . 1 . . . . . . 1 . Exploded 4 | . 2 . . . 2 2 2 . . . . . . . . . . . . . 3 . . . . . 4 3 . . 2 . Melee 1 | . . . . . . . . . . . . . . . . . . . . . . . . . . . 1 1 . . . . Uniques/NPCs Destroyed 3 | . . . . . . . . . . . . . 2 . . . . . . . . . . . . . . . . . . 1 Revision 17 (-6/Cetus) A7 (-6/Cetus) MAIN.C Shell (-1/Command) Combat | -11 -10 -10 -9 -9 -8 -7 -7 -7 -7 -6 -6 -6 -6 -6 -6 -5 -5 -5 -5 -4 -4 -4 -4 -4 -3 -3 -3 -3 -2 -2 -1 -1 -------- Run | Scr Mat Min Mat Min Mat Fac Low Low Dat Pro Fac Ext Cet Arc Hub Fac Upp Upp Zhi Pro Fac Upp Upp War Pro Res Qua Sec Res Tes Acc Com Damage Taken 22438 | . 291 . 375 . 761 813 579 369 . 577 666 336 117 20 552 979 139 159 . 978 1052 . . 450 321 1619 1859 3986 1120 12 260 4048 Core 3430 | . 65 . 25 . 66 98 174 60 . 79 12 52 . . 55 68 17 . . 97 57 . . . 41 99 205 478 360 4 69 1249 Absorbed by Shields 5761 | . . . . . . 42 . . . . . 61 33 . . . . . . . . . . 99 . 254 24 2260 . . 135 2853 Regen/Repaired (Parts) 1941 | . . . . . 346 . . . . . . . . . . 66 . . . . 269 . . . . . 644 616 . . . . Core Remaining (%) 76 | 100 . 74 . 93 88 . . . . 41 . . . . 86 . . . . 81 . . . . 91 . . 34 . 74 . . Volleys Fired 764 | . 34 1 50 2 55 35 22 18 . 16 52 25 18 6 28 62 3 5 . 33 51 . 10 12 13 21 23 49 22 8 31 59 Largest 4 | . 2 2 3 3 3 3 3 3 . 4 4 4 4 4 4 4 4 4 . 4 4 . 4 4 4 4 2 2 3 3 3 3 Hottest 376 | . 80 80 204 204 204 190 201 220 . 289 294 300 300 300 300 300 249 249 . 306 376 . 376 376 376 376 207 233 300 300 300 300 Shots Fired 2182 | . 68 2 146 6 153 95 52 42 . 50 156 99 72 24 99 197 12 20 . 123 159 . 39 50 46 54 45 82 48 10 73 160 Gun 1658 | . 34 1 106 . 2 80 33 5 . 12 68 95 72 24 95 190 12 20 . 123 159 . 39 50 46 41 26 38 48 10 73 156 Cannon 503 | . 32 1 40 6 147 10 14 37 . 38 88 4 . . 4 7 . . . . . . . . . 13 18 40 . . . 4 Launcher 21 | . 2 . . . 4 5 5 . . . . . . . . . . . . . . . . . . . 1 4 . . . . Special . | . . . . . . . . . . . . . . . . . . . . . . . . . . . . . . . . . Kinetic 36 | . 33 1 2 . . . . . . . . . . . . . . . . . . . . . . . . . . . . . Thermal 1800 | . 33 1 144 6 149 90 47 42 . 50 156 99 72 24 99 197 12 20 . 123 159 . 39 50 46 54 44 40 . . . 4 Explosive 21 | . 2 . . . 4 5 5 . . . . . . . . . . . . . . . . . . . 1 4 . . . . Electromagnetic . | . . . . . . . . . . . . . . . . . . . . . . . . . . . . . . . . . Slashing 325 | . . . . . . . . . . . . . . . . . . . . . . . . . . . . 38 48 10 73 156 Robot Hit Streak 45 | . 12 2 11 6 11 16 18 11 . 9 26 22 10 11 10 18 4 13 . 30 19 . . 23 11 16 9 19 11 . 14 45 Robot Miss Streak 7 | . 3 . 7 . 3 2 2 3 . 2 3 5 4 1 4 3 1 1 . 4 4 . . 3 2 3 2 4 1 . 2 2 Penetration Max 1 | . . . . . . . . . . . . . . . . . . . . . . . . . . . . 1 1 . 1 1 Secondary Targets 32 | . . . . . . 2 2 . . . . 3 1 . . 4 3 2 . 3 2 . . 1 1 . . . 1 . 5 2 Max Gunslinging Chain 2 | . . . . . . 1 1 . . . . 1 1 . . 1 2 1 . 1 1 . . 1 1 . . . 1 . 2 1 Shots Hit Robots 1424 | . 40 2 77 3 91 69 42 28 . 32 102 75 48 14 58 120 8 18 . 88 95 . . 34 33 28 54 65 24 . 41 135 Core Hits 715 | . 25 3 37 2 54 53 25 9 . 16 37 36 22 5 25 53 5 7 . 37 47 . . 15 18 10 29 51 13 . 24 57 Critical Kills 2 | . . . . . 1 . . . . . . . . . . . . . . . . . . . . . 1 . . . . . Critical Parts Destroyed . | . . . . . . . . . . . . . . . . . . . . . . . . . . . . . . . . . Critical Strikes 62 | . . . 5 . 1 6 2 . . . 6 2 6 . 8 9 . . . 8 . . . . . . 2 . 3 . 1 3 Burn 52 | . . . 5 . . 6 2 . . . 6 2 6 . 8 9 . . . 8 . . . . . . . . . . . . Meltdown 2 | . . . . . 1 . . . . . . . . . . . . . . . . . . . . . 1 . . . . . Sever 8 | . . . . . . . . . . . . . . . . . . . . . . . . . . . 1 . 3 . 1 3 Melee Attacks 87 | . . . . . . 7 1 6 . . . . 4 . . . . . . . . . . . . . 35 34 . . . . Kinetic 2 | . . . . . . . . . . . . . . . . . . . . . . . . . . . 2 . . . . . Impact . | . . . . . . . . . . . . . . . . . . . . . . . . . . . . . . . . . Slashing 85 | . . . . . . 7 1 6 . . . . 4 . . . . . . . . . . . . . 33 34 . . . . Piercing . | . . . . . . . . . . . . . . . . . . . . . . . . . . . . . . . . . Sneak Attacks 15 | . . . . . . . . . . . . . 4 . . . . . . . . . . . . . 5 6 . . . . Combat Hostiles . | . . . . . . . . . . . . . . . . . . . . . . . . . . . . . . . . . Follow-up Attacks . | . . . . . . . . . . . . . . . . . . . . . . . . . . . . . . . . . Damage Inflicted 56307 | . 797 59 1363 89 2425 2414 1317 682 . 759 2486 1891 1479 311 1551 2993 177 380 . 2119 3605 . . 1048 1009 1020 4157 6507 1883 . 3785 10001 Guns 37050 | . 241 11 820 . 40 1260 580 40 . 135 1184 1778 1071 311 1309 2856 177 380 . 2119 3013 . . 1048 1009 984 586 798 1709 . 3590 10001 Cannons 7799 | . 378 18 529 67 1973 145 262 642 . 624 1273 105 . . . . . . . . . . . . . 36 501 1246 . . . . Explosions 5022 | . 177 . . . 351 1009 475 . . . . . . . 242 . . . . . 574 . . . . . 515 1600 . . 79 . Melee 5701 | . . . . . . . . . . . . . 408 . . . . . . . . . . . . . 2555 2738 . . . . Ramming 735 | . 1 30 14 22 61 . . . . . 29 8 . . . 137 . . . . 18 . . . . . . 125 174 . 116 . Kinetic 314 | . 229 11 13 . . . . . . . . . . . . . . . . . . . . . . . 61 . . . . . Thermal 29072 | . 390 18 1336 67 2013 1405 842 682 . 759 2457 1883 1071 311 1309 2856 177 380 . 2119 3587 . . 1048 1009 1020 1087 1246 . . . . Explosive 4127 | . 177 . . . 351 1009 475 . . . . . . . . . . . . . . . . . . . 515 1600 . . . . Electromagnetic 321 | . . . . . . . . . . . . . . . 242 . . . . . . . . . . . . . . . 79 . Impact . | . . . . . . . . . . . . . . . . . . . . . . . . . . . . . . . . . Slashing 21738 | . . . . . . . . . . . . . 408 . . . . . . . . . . . . . 2494 3536 1709 . 3590 10001 Piercing . | . . . . . . . . . . . . . . . . . . . . . . . . . . . . . . . . . Highest Corruption 18 | . 4 4 . . . . . . . 4 2 2 2 2 2 1 1 4 4 4 3 3 3 11 18 5 8 3 1 1 1 11 Average Corruption 3 | . 3 4 . . . . . . . 4 1 2 2 1 2 1 1 3 4 4 1 3 3 2 11 4 6 2 1 1 1 6 Corruption Purged 2 | . . . . . . . . . . . . . . 2 . . . . . . . . . . . . . . . . . . Corruption Blocked 8 | . . . . . . . . . . . . . . . . . . . . . . . . 8 . . . . . . . . Effects 209 | . 21 21 . . . . . . . . 5 15 3 1 5 2 1 8 4 21 12 6 6 12 15 6 31 . 1 3 1 9 Message Errors 45 | . 3 4 . . . . . . . . 1 2 . 1 1 1 . 2 1 1 3 3 . 5 3 1 8 . . 1 1 3 Matter Fused 37 | . 7 3 . . . . . . . . . 4 . . . 1 1 3 1 4 2 1 1 3 2 . 3 . . . . 1 Heat Flow Errors 31 | . 3 4 . . . . . . . . . 2 1 . . . . . 1 2 2 . 1 1 2 2 8 . . 1 . 1 Energy Discharges 26 | . 1 4 . . . . . . . . 1 2 1 . 1 . . 1 . 6 . 1 1 . 2 1 2 . . 1 . 1 Parts Rejected 1 | . . . . . . . . . . . . . . . . . . . . . . . . . . . . . . . . 1 Data Loss (minor) 26 | . 2 4 . . . . . . . . . . 1 . . . . 1 1 5 2 1 1 . 3 . 4 . . . . 1 Data Loss (major) 16 | . 1 2 . . . . . . . . . 2 . . 2 . . . . 2 . . 1 1 . 1 3 . . . . 1 Misfires 11 | . 3 . . . . . . . . . 1 1 . . . . . . . . 1 . . 2 . . 2 . 1 . . . Alerts 8 | . . . . . . . . . . . 2 2 . . . . . 1 . 1 . . . . . 1 1 . . . . . Weapon Failures 8 | . 1 . . . . . . . . . . . . . 1 . . . . . 2 . 1 . 3 . . . . . . . Overload Shots 10 | . . . . . . . . . . . . . . . . 8 . . . 2 . . . . . . . . . . . . Effects 2 | . . . . . . . . . . . . . . . . 2 . . . . . . . . . . . . . . . . Heat Surge 1 | . . . . . . . . . . . . . . . . 1 . . . . . . . . . . . . . . . . Short Circuit 1 | . . . . . . . . . . . . . . . . 1 . . . . . . . . . . . . . . . . Overflow Damage 1942 | . 16 . . . 19 . 19 . . 18 24 . 73 . 49 6 . . . . 100 . . . . . 883 666 33 . 36 . Projectiles 147 | . . . . . 19 . 9 . . 18 24 . . . . . . . . . . . . . . . 34 43 . . . . Explosions 187 | . 16 . . . . . 10 . . . . . . . 49 . . . . . 100 . . . . . 2 10 . . . . Melee 1608 | . . . . . . . . . . . . . 73 . . 6 . . . . . . . . . . 847 613 33 . 36 . Knockbacks 5 | . . . 1 . 2 . . . . . . . . . . . . . . . 1 . . . . . . . . . 1 . Impact 5 | . . . 1 . 2 . . . . . . . . . . . . . . . 1 . . . . . . . . . 1 . Kinetic . | . . . . . . . . . . . . . . . . . . . . . . . . . . . . . . . . . Secondary . | . . . . . . . . . . . . . . . . . . . . . . . . . . . . . . . . . Self-Inflicted Damage 367 | . . . . . 6 . . . . . . . . . 100 . . . . . 126 . . . . . 121 . . . 14 . Shots 6 | . . . . . 1 . . . . . . . . . 1 . . . . . 2 . . . . . 1 . . . 1 . Rammed . | . . . . . . . . . . . . . . . . . . . . . . . . . . . . . . . . . Targets Rammed 50 | . 2 6 1 5 8 . . . . . 4 1 . . . 12 . . . . 1 . . . . . . 3 5 . 2 . Kicked 50 | . 2 6 1 5 8 . . . . . 4 1 . . . 12 . . . . 1 . . . . . . 3 5 . 2 . Crushed . | . . . . . . . . . . . . . . . . . . . . . . . . . . . . . . . . . Highest Temperature 430 | . 225 249 380 . 58 118 284 228 . 168 215 181 430 175 318 69 48 285 80 223 111 . 86 102 196 102 144 64 352 176 88 379 Average Temperature 60 | . 68 108 29 . 15 46 104 76 . 41 91 66 102 89 84 24 24 120 59 67 17 . 7 44 76 44 77 29 99 48 40 51 Received Heat Transfer 3459 | . 96 . 102 . 333 213 216 63 . 201 204 88 9 . 120 132 . 18 . 223 213 . . 22 18 142 441 257 126 . 4 218 Effects 2 | . . . . . . . . . . . . . . . 2 . . . . . . . . . . . . . . . . . Interference 2 | . . . . . . . . . . . . . . . 2 . . . . . . . . . . . . . . . . . Siege Activations . | . . . . . . . . . . . . . . . . . . . . . . . . . . . . . . . . . Robots Corrupted . | . . . . . . . . . . . . . . . . . . . . . . . . . . . . . . . . . Combat Hostiles . | . . . . . . . . . . . . . . . . . . . . . . . . . . . . . . . . . Parts Fried 5 | . . . . . . . . . . . . 1 1 . 3 . . . . . . . . . . . . . . . . . Impact Corruptions 4 | . . . . . . . . . . . . . . . . 1 . . . . . . . . . . . . 1 . 2 . Robots Melted 25 | . . . . . 2 2 . 1 . . 3 2 2 . 2 4 . 2 . 2 . . . . 1 1 1 . . . . . Combat Hostiles 22 | . . . . . 2 1 . 1 . . 2 2 2 . 2 3 . 2 . 2 . . . . 1 1 1 . . . . . Parts Melted 188 | . 3 . 7 . 4 12 7 2 . 3 24 14 4 1 19 28 . 4 . 24 12 . . 2 6 4 3 5 . . . . Heat Transferred 54966 | . 814 37 3515 111 3626 2941 1693 1257 . 1364 5096 4114 3050 700 3800 7000 400 850 . 5120 4000 . . 1220 928 1110 1184 1036 . . . . Parts Sabotaged . | . . . . . . . . . . . . . . . . . . . . . . . . . . . . . . . . . Parts Stolen . | . . . . . . . . . . . . . . . . . . . . . . . . . . . . . . . . . Parts Stripped . | . . . . . . . . . . . . . . . . . . . . . . . . . . . . . . . . . Power Chain Reactions . | . . . . . . . . . . . . . . . . . . . . . . . . . . . . . . . . . Missiles Intercepted . | . . . . . . . . . . . . . . . . . . . . . . . . . . . . . . . . . Alert | -11 -10 -10 -9 -9 -8 -7 -7 -7 -7 -6 -6 -6 -6 -6 -6 -5 -5 -5 -5 -4 -4 -4 -4 -4 -3 -3 -3 -3 -2 -2 -1 -1 ------- Run | Scr Mat Min Mat Min Mat Fac Low Low Dat Pro Fac Ext Cet Arc Hub Fac Upp Upp Zhi Pro Fac Upp Upp War Pro Res Qua Sec Res Tes Acc Com Peak Influence 2357 | . 196 36 255 114 237 306 . . . . 312 389 565 236 757 485 . . . . 436 . . . . 171 407 1977 2199 2254 2357 1665 Initial 1508 | . . 28 . 34 . 35 . . . . 37 114 154 146 82 277 . . . . 56 . . . . 70 . 196 1111 1236 1352 1508 Average 263 | . 61 13 124 22 96 78 . . . . 146 236 357 214 515 314 . . . . 195 . . . . 71 191 745 1408 1892 1822 1577 Maximum Alert Level 5 | . . . 1 . 1 1 . . . . 1 1 2 1 3 2 . . . . 2 . . . . . 2 5 5 5 5 5 Low Security (%) 63 | 100 100 100 90 100 96 85 . . . . 58 41 43 26 15 27 . . . . 45 . . . . 100 66 5 . . . . Level 1 20 | . . . 9 . 3 14 . . . . 41 58 3 74 11 46 . . . . 51 . . . . . 33 5 . . . . Level 2 8 | . . . . . . . . . . . . . 52 . 47 25 . . . . 3 . . . . . . 69 . . . . Level 3 . | . . . . . . . . . . . . . . . 24 . . . . . . . . . . . . 4 . . . . Level 4 1 | . . . . . . . . . . . . . . . . . . . . . . . . . . . . . 61 1 12 32 Level 5 . | . . . . . . . . . . . . . . . . . . . . . . . . . . . . . . . . 67 High Security . | . . . . . . . . . . . . . . . . . . . . . . . . . . . . . . . . . Max Security 3 | . . . . . . . . . . . . . . . . . . . . . . . . . . . . 15 38 98 87 . Squads Dispatched 106 | . 4 . 1 . 3 5 . . . . 6 1 . . 6 5 . . . . 10 . . . . 3 3 22 3 13 21 . Investigation 13 | . 4 . . . 1 2 . . . . . . . . 2 1 . . . . 3 . . . . . . . . . . . Extermination 11 | . . . . . . 1 . . . . 2 . . . . 1 . . . . 2 . . . . 1 2 2 . . . . Reinforcement 26 | . . . 1 . 2 2 . . . . 4 1 . . 3 1 . . . . 4 . . . . 2 1 3 . 1 1 . Assault 49 | . . . . . . . . . . . . . . . 1 1 . . . . 1 . . . . . . 14 . 12 20 . Garrison 1 | . . . . . . . . . . . . . . . . 1 . . . . . . . . . . . . . . . . Intercept 6 | . . . . . . . . . . . . . . . . . . . . . . . . . . . . 3 3 . . . Searches Triggered . | . . . . . . . . . . . . . . . . . . . . . . . . . . . . . . . . . Data Miner Redirects 9 | . . . . . . . . . . . . . . . 3 . . . . . 4 . . . . . . 2 . . . . Construction Impeded 2 | . . . . . 1 1 . . . . . . . . . . . . . . . . . . . . . . . . . . Haulers Reinforced 4 | . . . . . . . . . . . 2 . . . . . . . . . 1 . . . . 1 . . . . . . Active Scanning Responses . | . . . . . . . . . . . . . . . . . . . . . . . . . . . . . . . . . Cargo Convoy Interrupts 1 | . . . . . . 1 . . . . . . . . . . . . . . . . . . . . . . . . . . Stealth | -11 -10 -10 -9 -9 -8 -7 -7 -7 -7 -6 -6 -6 -6 -6 -6 -5 -5 -5 -5 -4 -4 -4 -4 -4 -3 -3 -3 -3 -2 -2 -1 -1 --------- Run | Scr Mat Min Mat Min Mat Fac Low Low Dat Pro Fac Ext Cet Arc Hub Fac Upp Upp Zhi Pro Fac Upp Upp War Pro Res Qua Sec Res Tes Acc Com Distress Signals 37 | . 2 . 3 . 4 . . . . . . 3 2 . 2 1 . . . 1 1 . . . 10 1 . 2 3 1 1 . Communications Jammed 57 | . . . . . . . . . . . . . . . . . . . . 23 . . . . . 2 32 . . . . . Distress Signals 55 | . . . . . . . . . . . . . . . . . . . . 23 . . . . . . 32 . . . . . Times Spotted 623 | . 17 2 25 2 37 19 10 8 . 15 17 32 17 4 22 27 5 3 . 16 22 . . 47 7 11 23 97 41 32 41 24 Peak Tracking Total 36 | . 3 1 4 2 6 11 7 5 . 7 4 5 6 2 7 6 5 3 . 4 4 . . 12 3 7 5 36 25 22 21 11 Tactical Retreats 38 | . . . . . 2 . . 1 . . 2 1 . . . 3 . . . . 4 . . 3 . . . 5 4 6 6 1 Traps | -11 -10 -10 -9 -9 -8 -7 -7 -7 -7 -6 -6 -6 -6 -6 -6 -5 -5 -5 -5 -4 -4 -4 -4 -4 -3 -3 -3 -3 -2 -2 -1 -1 ------- Run | Scr Mat Min Mat Min Mat Fac Low Low Dat Pro Fac Ext Cet Arc Hub Fac Upp Upp Zhi Pro Fac Upp Upp War Pro Res Qua Sec Res Tes Acc Com Traps Triggered 20 | . 3 . . . 2 2 . . . . 4 3 . . . 1 . . . . 1 . . . . . 2 . . 2 . . Indirectly . | . . . . . . . . . . . . . . . . . . . . . . . . . . . . . . . . . Trap Hack Attempts . | . . . . . . . . . . . . . . . . . . . . . . . . . . . . . . . . . Triggered . | . . . . . . . . . . . . . . . . . . . . . . . . . . . . . . . . . Disarmed . | . . . . . . . . . . . . . . . . . . . . . . . . . . . . . . . . . Reprogrammed . | . . . . . . . . . . . . . . . . . . . . . . . . . . . . . . . . . Reused . | . . . . . . . . . . . . . . . . . . . . . . . . . . . . . . . . . Traps Extracted . | . . . . . . . . . . . . . . . . . . . . . . . . . . . . . . . . . Installed . | . . . . . . . . . . . . . . . . . . . . . . . . . . . . . . . . . Triggered 16 | . . . . . . 1 . . . 4 . . . . . . . . . . . . . 10 1 . . . . . . . Machines | -11 -10 -10 -9 -9 -8 -7 -7 -7 -7 -6 -6 -6 -6 -6 -6 -5 -5 -5 -5 -4 -4 -4 -4 -4 -3 -3 -3 -3 -2 -2 -1 -1 ---------- Run | Scr Mat Min Mat Min Mat Fac Low Low Dat Pro Fac Ext Cet Arc Hub Fac Upp Upp Zhi Pro Fac Upp Upp War Pro Res Qua Sec Res Tes Acc Com Machines Disabled 62 | . . . 1 2 1 . 1 . . 2 2 4 2 . 8 . . . . 2 5 . . . . . 6 11 4 4 5 2 Max in Single Turn 7 | . . . 1 1 1 . 1 . . 1 2 1 . . 7 . . . . 1 3 . . . . . 2 1 1 1 2 1 Garrison Access 4 | . . . . . 1 . . . . . . . . . . 2 . . . . . . . . . . . . 1 . . . Network Hub 1 | . . . . . . . . . . . . . . . 1 . . . . . . . . . . . . . . . . . Machines Sabotaged . | . . . . . . . . . . . . . . . . . . . . . . . . . . . . . . . . . Garrisons Compromised 1 | . . . . . . 1 . . . . . . . . . . . . . . . . . . . . . . . . . . Overloaded Fab Kills . | . . . . . . . . . . . . . . . . . . . . . . . . . . . . . . . . . Hacking | -11 -10 -10 -9 -9 -8 -7 -7 -7 -7 -6 -6 -6 -6 -6 -6 -5 -5 -5 -5 -4 -4 -4 -4 -4 -3 -3 -3 -3 -2 -2 -1 -1 --------- Run | Scr Mat Min Mat Min Mat Fac Low Low Dat Pro Fac Ext Cet Arc Hub Fac Upp Upp Zhi Pro Fac Upp Upp War Pro Res Qua Sec Res Tes Acc Com Machines Accessed 96 | . 9 1 8 1 8 8 2 1 4 1 5 8 . . 4 11 . . 4 2 6 1 . 1 . . 5 4 1 . 1 . Terminals 64 | . 7 1 7 . 5 6 . . . 1 4 8 . . 3 7 . . . 1 3 1 . . . . 4 4 1 . 1 . Fabricators 4 | . . . . . . 1 . . . . 1 . . . . . . . . 1 1 . . . . . . . . . . . Repair Stations 6 | . . . . . 2 . . . . . . . . . . 2 . . . . 2 . . . . . . . . . . . Recycling Units 2 | . 2 . . . . . . . . . . . . . . . . . . . . . . . . . . . . . . . Scanalyzers 2 | . . . 1 . . . . . . . . . . . . . . . . . . . . . . . 1 . . . . . Garrison Access 5 | . . . . . 1 1 . . . . . . . . 1 2 . . . . . . . . . . . . . . . . Total Hacks 330 | . 29 1 30 1 36 25 8 1 30 2 9 20 . . 14 32 . . 17 5 33 1 . 4 . . 16 9 4 . 3 . Successful 204 | . 16 1 21 1 23 11 8 1 30 2 5 11 . . . 16 . . 17 2 15 1 . 4 . . 12 4 1 . 2 . Failed 125 | . 12 . 9 . 13 14 . . . . 4 9 . . 14 16 . . . 3 18 . . . . . 4 5 3 . 1 . Catastrophic 18 | . 1 . . . 1 1 . . . . . 3 . . 2 4 . . . . 5 . . . . . 1 . . . . . Database Lockouts 1 | . 1 . . . . . . . . . . . . . . . . . . . . . . . . . . . . . . . Manual 140 | . 24 1 20 . 13 17 . . . . 3 10 1 . 4 19 . . . . 15 . . 1 . . 9 2 1 . . . Terminals 214 | . 27 1 28 . 18 22 . . . 2 7 20 . . 11 23 . . . 1 23 1 . . . . 14 9 4 . 3 . Fabricators 11 | . . . . . . 2 . . . . 2 . . . . . . . . 4 3 . . . . . . . . . . . Repair Stations 29 | . . . . . 16 . . . . . . . . . . 6 . . . . 7 . . . . . . . . . . . Recycling Units 2 | . 2 . . . . . . . . . . . . . . . . . . . . . . . . . . . . . . . Scanalyzers 4 | . . . 2 . . . . . . . . . . . . . . . . . . . . . . . 2 . . . . . Garrison Access 9 | . . . . . 2 1 . . . . . . . . 3 3 . . . . . . . . . . . . . . . . Terminal Hacks 143 | . 10 1 13 1 7 7 8 1 30 2 3 8 . . . 8 . . 17 1 6 1 . 4 . . 8 4 1 . 2 . Record 32 | . . . . . . . 7 . 11 2 . . . . . . . . 5 . . 1 . 4 . . 2 . . . . . Part Schematic 15 | . . . . . . . . . 11 . . . . . . . . . 4 . . . . . . . . . . . . . Robot Schematic 5 | . . . . . . . . . 5 . . . . . . . . . . . . . . . . . . . . . . . Robot Analysis 7 | . 2 . . . . . . . . . . . . . . . . . 4 . 1 . . . . . . . . . . . Prototype ID Bank 11 | . . . 1 . . . . . 3 . . 2 . . . 1 . . 4 . . . . . . . . . . . . . Open Door 7 | . . . . 1 . . 1 1 . . 1 . . . . . . . . 1 . . . . . . . 2 . . . . Level Access Points 2 | . . . . . 1 . . . . . . . . . . 1 . . . . . . . . . . . . . . . . Branch Access Points 4 | . . . . . . 1 . . . . 1 . . . . 1 . . . . 1 . . . . . . . . . . . Terminal Index 7 | . 1 . 2 . . 1 . . . . . . . . . . . . . . 1 . . . . . 1 . . . 1 . Fabricator Index 1 | . . . . . . . . . . . . . . . . 1 . . . . . . . . . . . . . . . . Repair Station Index 1 | . . . . . . . . . . . . . . . . 1 . . . . . . . . . . . . . . . . Scanalyzer Index 1 | . . . 1 . . . . . . . . . . . . . . . . . . . . . . . . . . . . . Alert Level 16 | . 1 . 3 . 1 2 . . . . 1 2 . . . 1 . . . . 1 . . . . . 2 1 1 . . . Unreport Threat 3 | . . . . . 2 . . . . . . . . . . . . . . . . . . . . . . . . . 1 . Dispatch Records 1 | . . . . . . . . . . . . 1 . . . . . . . . . . . . . . . . . . . . Patrol Status 1 | . . . 1 . . . . . . . . . . . . . . . . . . . . . . . . . . . . . Recall Investigation 4 | . 2 . . . 1 . . . . . . . . . . 1 . . . . . . . . . . . . . . . . Hauler Manifests 9 | . 1 . 2 . 1 2 . . . . . 1 . . . 1 . . . . 1 . . . . . . . . . . . Zone Layout 15 | . 3 1 3 . 1 1 . . . . . 2 . . . . . . . . 1 . . . . . 3 . . . . . Activate Exoskeleton 1 | . . . . . . . . . . . . . . . . . . . . . . . . . . . . 1 . . . . Fabricator Hacks 5 | . . . . . . . . . . . 1 . . . . . . . . 1 3 . . . . . . . . . . . Network Status 2 | . . . . . . . . . . . 1 . . . . . . . . . 1 . . . . . . . . . . . Load Schematic 2 | . . . . . . . . . . . . . . . . . . . . 1 1 . . . . . . . . . . . Build 1 | . . . . . . . . . . . . . . . . . . . . . 1 . . . . . . . . . . . Repair Station Hacks 21 | . . . . . 13 . . . . . . . . . . 4 . . . . 4 . . . . . . . . . . . Scan Component 12 | . . . . . 7 . . . . . . . . . . 3 . . . . 2 . . . . . . . . . . . Repair 9 | . . . . . 6 . . . . . . . . . . 1 . . . . 2 . . . . . . . . . . . Recycling Unit Hacks . | . . . . . . . . . . . . . . . . . . . . . . . . . . . . . . . . . Scanalyzer 4 | . . . 2 . . . . . . . . . . . . . . . . . . . . . . . 2 . . . . . Insert Component 3 | . . . 1 . . . . . . . . . . . . . . . . . . . . . . . 2 . . . . . Analyze 1 | . . . 1 . . . . . . . . . . . . . . . . . . . . . . . . . . . . . Garrison Access Hacks 3 | . . . . . 1 . . . . . . . . . . 2 . . . . . . . . . . . . . . . . Seal Access 3 | . . . . . 1 . . . . . . . . . . 2 . . . . . . . . . . . . . . . . Unauthorized Hacks 28 | . 6 . 6 . 2 4 . . . . 1 3 . . . 2 . . . . 2 . . . . . 2 . . . . . Terminals 25 | . 4 . 6 . 2 3 . . . . 1 3 . . . 2 . . . . 2 . . . . . 2 . . . . . Track 2 | . . . 2 . . . . . . . . . . . . . . . . . . . . . . . . . . . . . Assimilate 1 | . 1 . . . . . . . . . . . . . . . . . . . . . . . . . . . . . . . Botnet 20 | . 2 . 3 . 2 3 . . . . 1 3 . . . 2 . . . . 2 . . . . . 2 . . . . . Operators 2 | . 1 . 1 . . . . . . . . . . . . . . . . . . . . . . . . . . . . . Fabricators 1 | . . . . . . 1 . . . . . . . . . . . . . . . . . . . . . . . . . . Liberate 1 | . . . . . . 1 . . . . . . . . . . . . . . . . . . . . . . . . . . Repair Stations . | . . . . . . . . . . . . . . . . . . . . . . . . . . . . . . . . . Recycling Units 2 | . 2 . . . . . . . . . . . . . . . . . . . . . . . . . . . . . . . Tunnel 2 | . 2 . . . . . . . . . . . . . . . . . . . . . . . . . . . . . . . Scanalyzers . | . . . . . . . . . . . . . . . . . . . . . . . . . . . . . . . . . Garrison Access . | . . . . . . . . . . . . . . . . . . . . . . . . . . . . . . . . . Data Cores Recovered 2 | . . . 1 . . . . . . . . 1 . . . . . . . . . . . . . . . . . . . . Used 1 | . . . . . . . . . . . . 1 . . . . . . . . . . . . . . . . . . . . Hacking Detections 72 | . 6 1 7 . 8 8 . . . 1 5 7 . . 4 10 . . . 1 5 . . . . . 4 3 1 . 1 . Full Trace Events 10 | . 1 . . . 1 2 . . . . . . . . 2 . . . . 1 3 . . . . . . . . . . . Feedback Events . | . . . . . . . . . . . . . . . . . . . . . . . . . . . . . . . . . Feedback Blocked . | . . . . . . . . . . . . . . . . . . . . . . . . . . . . . . . . . Robot Schematics Acquired 6 | . . . . . . . . . 5 . . . . . . . . . . . . . . . . . 1 . . . . . Robots Built . | . . . . . . . . . . . . . . . . . . . . . . . . . . . . . . . . . Authchips . | . . . . . . . . . . . . . . . . . . . . . . . . . . . . . . . . . Time . | . . . . . . . . . . . . . . . . . . . . . . . . . . . . . . . . . Total Robot Build Rating . | . . . . . . . . . . . . . . . . . . . . . . . . . . . . . . . . . Part Schematics Acquired 30 | . . . 1 . . . . . 11 . . . . . . . . . 4 . . . . . . . 9 5 . . . . Parts Built 1 | . . . . . . . . . . . . . . . . . . . . . 1 . . . . . . . . . . . Authchips . | . . . . . . . . . . . . . . . . . . . . . . . . . . . . . . . . . Time 76 | . . . . . . . . . . . . . . . . . . . . . 76 . . . . . . . . . . . Total Part Build Rating 5 | . . . . . . . . . . . . . . . . . . . . . 5 . . . . . . . . . . . Parts Repaired 9 | . . . . . 6 . . . . . . . . . . 1 . . . . 2 . . . . . . . . . . . Time 405 | . . . . . 204 . . . . . . . . . . 50 . . . . 151 . . . . . . . . . . . Parts Recycled . | . . . . . . . . . . . . . . . . . . . . . . . . . . . . . . . . . Recycled Matter . | . . . . . . . . . . . . . . . . . . . . . . . . . . . . . . . . . Retrieved Matter . | . . . . . . . . . . . . . . . . . . . . . . . . . . . . . . . . . Retrieved Components . | . . . . . . . . . . . . . . . . . . . . . . . . . . . . . . . . . Parts Scanalyzed 1 | . . . 1 . . . . . . . . . . . . . . . . . . . . . . . . . . . . . Part Schematics Acquired 1 | . . . 1 . . . . . . . . . . . . . . . . . . . . . . . . . . . . . Parts Damaged . | . . . . . . . . . . . . . . . . . . . . . . . . . . . . . . . . . Bothacking | -11 -10 -10 -9 -9 -8 -7 -7 -7 -7 -6 -6 -6 -6 -6 -6 -5 -5 -5 -5 -4 -4 -4 -4 -4 -3 -3 -3 -3 -2 -2 -1 -1 ------------ Run | Scr Mat Min Mat Min Mat Fac Low Low Dat Pro Fac Ext Cet Arc Hub Fac Upp Upp Zhi Pro Fac Upp Upp War Pro Res Qua Sec Res Tes Acc Com Used RIF Installer . | . . . . . . . . . . . . . . . . . . . . . . . . . . . . . . . . . Robots Hacked . | . . . . . . . . . . . . . . . . . . . . . . . . . . . . . . . . . Non-combat . | . . . . . . . . . . . . . . . . . . . . . . . . . . . . . . . . . Combat . | . . . . . . . . . . . . . . . . . . . . . . . . . . . . . . . . . Robot Hacks Applied . | . . . . . . . . . . . . . . . . . . . . . . . . . . . . . . . . . Relay Couplers Released 2 | . . . . . . . . . . . . . . . . . . . . . . . . . . . . . 2 . . . Machine Destruction 2 | . . . . . . . . . . . . . . . . . . . . . . . . . . . . . 2 . . . Fabnet Peak Effective % . | . . . . . . . . . . . . . . . . . . . . . . . . . . . . . . . . . Robots Rewired 27 | . . . . . . . 2 . . 1 . 14 . . . . . . . 6 . . . 4 . . . . . . . . Allies Hacked 1 | . . . . . . . . . . . . . . . . . . . . . . . . 1 . . . . . . . . Hacks Repelled . | . . . . . . . . . . . . . . . . . . . . . . . . . . . . . . . . . Allies | -11 -10 -10 -9 -9 -8 -7 -7 -7 -7 -6 -6 -6 -6 -6 -6 -5 -5 -5 -5 -4 -4 -4 -4 -4 -3 -3 -3 -3 -2 -2 -1 -1 -------- Run | Scr Mat Min Mat Min Mat Fac Low Low Dat Pro Fac Ext Cet Arc Hub Fac Upp Upp Zhi Pro Fac Upp Upp War Pro Res Qua Sec Res Tes Acc Com Total Allies 124 | . 1 5 . . . . 2 . . 2 . 21 2 . . . . . . 6 . . . 4 . . . . 36 . 30 15 Largest Group 13 | . 1 6 4 . . . 2 2 . 2 . 8 6 2 1 . . . . 6 2 . . 4 . . . . 8 . 7 13 Highest-Rated Group 365 | . 10 95 71 . . . 50 50 . 125 . 344 365 187 96 . . . . 220 73 . . 238 . . . . 208 . 99 187 Highest-Rated Ally 159 | . 10 31 31 . . . 30 30 . 96 . 159 153 96 96 . . . . 50 43 . . 68 . . . . 46 . 15 15 Total Orders 3 | . . . . . . . . . . 2 . . . . . . . . . . . . . 1 . . . . . . . . AID 1 | . . . . . . . . . . . . . . . . . . . . . . . . 1 . . . . . . . . RETURN 2 | . . . . . . . . . . 2 . . . . . . . . . . . . . . . . . . . . . . Ally Attacks 312 | . . 5 19 . . . . . . 38 . 111 50 8 24 . . . . 20 . . . 23 . . . . . . 14 . Total Damage 8284 | . . 66 208 . . . . . . 714 . 2594 1575 366 843 . . . . 690 . . . 975 . . . . . . 253 . Kills 59 | . . 1 6 . . . . . . 6 . 15 11 1 7 . . . . 6 . . . 5 . . . . . . 1 . Allies Corrupted 1 | . . . . . . . . . . . . 1 . . . . . . . . . . . . . . . . . . . . Allies Melted 3 | . . . . . . . . . . 1 . 1 . . . . . . . . . . . . . . . . 1 . . . Intel | -11 -10 -10 -9 -9 -8 -7 -7 -7 -7 -6 -6 -6 -6 -6 -6 -5 -5 -5 -5 -4 -4 -4 -4 -4 -3 -3 -3 -3 -2 -2 -1 -1 ------- Run | Scr Mat Min Mat Min Mat Fac Low Low Dat Pro Fac Ext Cet Arc Hub Fac Upp Upp Zhi Pro Fac Upp Upp War Pro Res Qua Sec Res Tes Acc Com Robot Analysis Total 7 | . 2 . . . . . . . . . . . . . . . . . 4 . 1 . . . . . . . . . . . Derelict Logs Recovered 11 | . . 2 . 1 . . 1 . . 1 . . . . . . . 1 . 1 . 2 2 . . . . . . . . . Drone Launches 3 | . . . . . . . . . . 3 . . . . . . . . . . . . . . . . . . . . . . Drone Recoveries 3 | . . . . . . . . . . 3 . . . . . . . . . . . . . . . . . . . . . . Exploration | -11 -10 -10 -9 -9 -8 -7 -7 -7 -7 -6 -6 -6 -6 -6 -6 -5 -5 -5 -5 -4 -4 -4 -4 -4 -3 -3 -3 -3 -2 -2 -1 -1 ------------- Run | Scr Mat Min Mat Min Mat Fac Low Low Dat Pro Fac Ext Cet Arc Hub Fac Upp Upp Zhi Pro Fac Upp Upp War Pro Res Qua Sec Res Tes Acc Com Turns Passed 27078 | 46 1338 854 1801 1549 2084 1585 639 573 99 624 1369 1304 404 150 420 2104 314 311 204 1032 1540 348 579 1314 330 547 1386 1034 392 207 301 296 Spaces Moved 15758 | 37 716 431 671 585 787 841 397 319 77 313 532 674 181 46 216 1293 248 221 147 410 734 277 382 745 218 310 750 926 868 579 557 270 Core 12 | 12 . . . . . . . . . . . . . . . . . . . . . . . . . . . . . . . . Treads . | . . . . . . . . . . . . . . . . . . . . . . . . . . . . . . . . . Legs 15746 | 25 716 431 671 585 787 841 397 319 77 313 532 674 181 46 216 1293 248 221 147 410 734 277 382 745 218 310 750 926 868 579 557 270 Wheels . | . . . . . . . . . . . . . . . . . . . . . . . . . . . . . . . . . Hover . | . . . . . . . . . . . . . . . . . . . . . . . . . . . . . . . . . Flight . | . . . . . . . . . . . . . . . . . . . . . . . . . . . . . . . . . Fastest Speed 30 | 50 120 190 190 260 190 120 130 130 130 130 110 112 120 120 120 120 120 120 120 120 120 120 120 114 114 104 104 30 30 30 30 30 Average Speed 128 | 97 152 190 226 260 190 140 130 133 130 161 192 120 120 120 120 120 120 120 120 153 164 120 120 116 114 115 121 68 30 30 30 30 Slowest Speed 260 | 120 190 190 260 260 190 190 130 200 130 200 195 190 120 120 120 120 120 120 120 190 190 120 120 120 114 180 176 190 30 30 30 90 Overloaded Moves . | . . . . . . . . . . . . . . . . . . . . . . . . . . . . . . . . . Propulsion Burnouts . | . . . . . . . . . . . . . . . . . . . . . . . . . . . . . . . . . Robots Hopped . | . . . . . . . . . . . . . . . . . . . . . . . . . . . . . . . . . Cave-ins Triggered . | . . . . . . . . . . . . . . . . . . . . . . . . . . . . . . . . . Teleports 1 | . . . . . . . . . . . . . . . . . . . . . . . . . . . . 1 . . . . Exploration Rate (%) 51 | 3 91 97 58 95 77 22 59 55 69 51 17 83 56 67 39 32 58 37 60 56 19 49 51 78 36 13 78 52 37 69 21 12 Regions Visited 32 Branch Regions 22 Pre-discovered Areas 9 | . 2 . . 2 . . . . 1 . . . . . . . . . 3 . . 1 . . . . . . . . . . Known Exits Taken 27 | . . 1 . . 1 1 1 1 1 1 1 1 1 1 1 1 1 1 1 1 1 1 1 1 1 1 1 1 1 1 . . Unknown Exits Taken 5 | 1 1 . 1 1 . . . . . . . . . . . . . . . . . . . . . . . . . . 1 . Scrap Searched 18 | . . 1 . 4 . . 1 1 . 3 . . . . . . 2 1 . 1 . 1 2 . 1 . . . . . . . Spaces Dug 158 | . . . . . 5 7 1 6 . . 7 . . . 4 8 . . . 2 18 . 25 . 1 6 6 5 23 4 30 . Terrain Destroyed 697 | . 17 . . . 26 15 20 10 . . 19 . . . 176 14 . . . 5 67 . 33 2 5 12 55 97 51 12 53 8 Melee 22 | . . . . . . 7 1 6 . . . . . . . . . . . . . . . . . . 6 2 . . . . Projectile 280 | . . . . . 1 . . 4 . . 19 . . . 6 14 . . . 5 36 . 33 2 5 12 4 15 51 12 53 8 AOE 395 | . 17 . . . 25 8 19 . . . . . . . 170 . . . . . 31 . . . . . 45 80 . . . . Terrain Rammed . | . . . . . . . . . . . . . . . . . . . . . . . . . . . . . . . . . Walls Destroyed . | . . . . . . . . . . . . . . . . . . . . . . . . . . . . . . . . . Machines Disabled . | . . . . . . . . . . . . . . . . . . . . . . . . . . . . . . . . . Actions | -11 -10 -10 -9 -9 -8 -7 -7 -7 -7 -6 -6 -6 -6 -6 -6 -5 -5 -5 -5 -4 -4 -4 -4 -4 -3 -3 -3 -3 -2 -2 -1 -1 --------- Run | Scr Mat Min Mat Min Mat Fac Low Low Dat Pro Fac Ext Cet Arc Hub Fac Upp Upp Zhi Pro Fac Upp Upp War Pro Res Qua Sec Res Tes Acc Com Total 20870 | 44 899 460 855 603 1253 1174 473 423 76 391 764 1102 316 126 305 1700 256 254 174 736 948 292 477 1156 265 455 1112 1167 969 604 649 392 Wait 3080 | . 112 16 62 4 352 227 33 71 . 41 127 156 96 69 46 283 3 25 . 242 127 9 86 318 28 103 224 67 70 10 45 28 Move 15725 | 36 715 430 670 584 786 840 396 318 76 312 531 673 180 45 215 1292 247 220 146 409 733 276 381 744 217 309 749 925 867 578 555 270 Hop . | . . . . . . . . . . . . . . . . . . . . . . . . . . . . . . . . . Pick Up 187 | 2 17 1 17 2 9 12 2 1 . 4 8 9 3 . . 11 1 . 2 7 3 1 . 8 . 5 16 29 2 3 5 7 Fast Attach 127 | 6 1 . 8 2 11 4 2 . . 3 7 3 1 3 1 2 . 1 13 1 11 2 . 6 . 2 11 17 . 2 . 7 Attach 76 | . . . 2 . 2 2 4 2 . 1 2 1 . . . 10 1 1 . 3 3 . . 2 1 5 10 10 2 . 5 7 Detach 8 | . . . . . . . . . . . . . . . . 1 . . . . . . . . . 1 2 1 . . 2 1 Swap 281 | . 9 3 13 . 13 19 6 7 . 10 20 29 9 . 14 23 1 1 . 15 18 1 . 21 6 8 16 14 2 . . 3 Drop 233 | . 9 3 32 4 17 20 1 . . 2 13 26 5 3 1 4 . 1 13 8 1 3 . 18 . 1 26 5 . 3 4 10 Fire 764 | . 34 1 50 2 55 35 22 18 . 16 52 25 18 6 28 62 3 5 . 33 51 . 10 12 13 21 23 49 22 8 31 59 Melee 87 | . . . . . . 7 1 6 . . . . 4 . . . . . . . . . . . . . 35 34 . . . . Ram . | . . . . . . . . . . . . . . . . . . . . . . . . . . . . . . . . . Kick 49 | . 2 6 1 5 8 . . . . . 4 1 . . . 12 . . . . 1 . . . . . . 3 4 . 2 . Crush . | . . . . . . . . . . . . . . . . . . . . . . . . . . . . . . . . . Escape Stasis 34 | . . . . . . 8 . . . . . 13 . . . . . . . . . . . . . . . 13 . . . . Rewire 219 | . . . . . . . 6 . . 2 . 166 . . . . . . . 18 . . . 27 . . . . . . . . Trap . | . . . . . . . . . . . . . . . . . . . . . . . . . . . . . . . . . Miscellaneous . | . . . . . . . . . . . . . . . . . . . . . . . . . . . . . . . . . Route ------- -11/Scrapyard -10/Materials (discovered 3 exits: *Mat x2 / *Min) -10/Mines (discovered 2 exits: *Mat x2) -9/Materials (discovered 2 exits: *Mat / *Min) -9/Mines -8/Materials (discovered 3 exits: *Fac x3) -7/Factory (discovered 3 exits: Sto / *Low x2) -7/Lower Caves -7/Lower Caves (discovered 2 exits: *Fac / *Dat) -7/Data Miner -6/Proximity Caves -6/Factory (discovered 4 exits: Low x2 / *Ext x2) -6/Extension (discovered 2 exits: *Fac / *Cet) -6/Cetus (discovered 2 exits: *Fac / *Arc) -6/Archives -6/Hub_04(d) -5/Factory (discovered 6 exits: *Fac x4 / *Upp x2) -5/Upper Caves -5/Upper Caves -5/Zhirov -4/Proximity Caves -4/Factory (discovered 4 exits: *Res / *Upp x2 / Arm) -4/Upper Caves -4/Upper Caves (discovered 2 exits: Res / *War) -4/Warlord -3/Proximity Caves -3/Research -3/Quarantine -3/Section 7 -2/Research (discovered 3 exits: *Acc x2 / *Tes) -2/Testing -1/Access (discovered 2 exits: [Sur] / [*Com]) -1/Command History --------- Turn | Location | Event 2 | -11/Scrapyard | Met Revision 17 12 | -11/Scrapyard | Discovered new exit (range 16) 47 | -11/Scrapyard | Entered Materials 186 | -10/Materials | Discovered new exit (range 15) 309 | -10/Materials | Build established: Mutant 322 | -10/Materials | Discovered new exit (range 9) 417 | -10/Materials | Central database locked down 1159 | -10/Materials | Discovered new exit (range 10) 1385 | -10/Materials | Entered Mines 1385 | -10/Mines | Accompanied by 1 ally 1670 | -10/Mines | Assisted by bots powering up and referring to "LRC-V3" 1914 | -10/Mines | Discovered new exit (range 12) 1959 | -10/Mines | Build established: Commander-Mutant 2100 | -10/Mines | Found a damaged Exp. Sensor Array with a note attached 2106 | -10/Mines | Found Prototype Device 2128 | -10/Mines | Identified exit to Materials 2178 | -10/Mines | Learned Materials emergency access door positions 2219 | -10/Mines | Deemed a non-threat by the Exiles lab entrance 2239 | -10/Mines | Entered Materials 2239 | -9/Materials | Accompanied by 4 allies 2239 | -9/Materials | Evolved 2 slots: Utility x1, Weapon x1 2244 | -9/Materials | Led the pair of lost Derelicts to an unsafe place 2556 | -9/Materials | Build established: Scavenger-Gunner 2784 | -9/Materials | Discovered new exit (range 8) 3123 | -9/Materials | Build established: Gunner 3869 | -9/Materials | Discovered new exit (range 16) 3921 | -9/Materials | Identified Exp. Sensor Array 4040 | -9/Materials | Entered Mines 4059 | -9/Mines | Learned location of Storage (-7) 4064 | -9/Mines | YI-UF0 nonchalantly dropped a Grenade Launcher on the ground 4321 | -9/Mines | A weapon hastily lodged in a ceiling crevice suddenly fell to the ground 4727 | -9/Mines | Found the Drone Emporium 4739 | -9/Mines | Found Prototype Device 4739 | -9/Mines | Identified Thief Drone Bay 5571 | -9/Mines | Discovered new exit (range 6) 5589 | -9/Mines | Entered Materials 5589 | -8/Materials | Evolved 2 slots: Propulsion x1, Utility x1 5912 | -8/Materials | Build established: Tank 6000 | -8/Materials | Repaired Med. Armor Plating 6040 | -8/Materials | Repaired Carbon-fiber Leg 6073 | -8/Materials | Repaired Particle Cannon 7284 | -8/Materials | Repaired Carbon-fiber Leg 7318 | -8/Materials | Repaired Cooling System 7351 | -8/Materials | Repaired Cooling System 7385 | -8/Materials | Identified exit to Factory 7673 | -8/Materials | Entered Factory 7673 | -7/Factory | Evolved 2 slots: Utility x2 7962 | -7/Factory | Build established: Scavenger-Skirmisher 8340 | -7/Factory | Build established: Skirmisher 8504 | -7/Factory | Identified exit to Storage 8504 | -7/Factory | Identified exit to Lower Caves 8977 | -7/Factory | Cargo convoy interrupted 9045 | -7/Factory | Destroyed 9 combat bots 9258 | -7/Factory | Entered Lower Caves 9481 | -7/Lower Caves | Learned Factory garrison access intel 9521 | -7/Lower Caves | Attracted the attention of an 0b10 outpost 9560 | -7/Lower Caves | Lost 3 parts (1u2w) 9670 | -7/Lower Caves | Found Alien Artifact 9670 | -7/Lower Caves | Identified Core Expander 9670 | -7/Lower Caves | Installed Core Expander, added new Weapon slot 9762 | -7/Lower Caves | Learned Research trap positions 9762 | -7/Lower Caves | Learned Armory stockpile data 9762 | -7/Lower Caves | Learned Research terminal intel 9762 | -7/Lower Caves | Learned Extension terminal intel 9852 | -7/Lower Caves | Discovered new exit (range 15) 9869 | -7/Lower Caves | Identified exit to Lower Caves 9897 | -7/Lower Caves | Entered another Lower Caves area 9897 | -7/Lower Caves | Accompanied by 2 allies 9902 | -7/Lower Caves | Discovered new exit (range 10) 9921 | -7/Lower Caves | Identified exit to Factory 10345 | -7/Lower Caves | Attracted the attention of an 0b10 checkpoint 10422 | -7/Lower Caves | Encountered a Warlord checkpoint 10452 | -7/Lower Caves | Discovered new exit (range 15) 10469 | -7/Lower Caves | Identified exit to Data Miner 10470 | -7/Lower Caves | Entered Data Miner 10470 | -7/Data Miner | Discovered new exit (range 6) 10495 | -7/Data Miner | Met Data Miner 10521 | -7/Data Miner | Learned location of Section 7 (-3) 10521 | -7/Data Miner | Acquired the access code to Warlord's prototype stash 10539 | -7/Data Miner | Received God Mode back door access code from Data Miner 10568 | -7/Data Miner | Identified exit to Proximity Caves 10569 | -7/Data Miner | Entered Proximity Caves 10786 | -6/Proximity Caves | Escorted by Enhanced Grunt 10911 | -6/Proximity Caves | Attracted the attention of an 0b10 base 10911 | -6/Proximity Caves | Core integrity fell below 50% 10940 | -6/Proximity Caves | Learned Armory terminal intel 10957 | -6/Proximity Caves | Attracted the attention of an 0b10 checkpoint 11045 | -6/Proximity Caves | Learned Factory security intel 11157 | -6/Proximity Caves | Discovered exit to Factory (range 9) 11193 | -6/Proximity Caves | Entered Factory 11193 | -6/Factory | Evolved 2 slots: Power x1, Propulsion x1 11195 | -6/Factory | Loaded intel: 4 garrison access locations 12078 | -6/Factory | Identified exit to Lower Caves 12078 | -6/Factory | Identified exit to Extension 12137 | -6/Factory | Spotted B-75 Beast 12384 | -6/Factory | Destroyed B-75 Beast 12562 | -6/Factory | Entered Extension 12563 | -6/Extension | Loaded intel: 18 terminal locations 12633 | -6/Extension | Rescued a captive Derelict 12795 | -6/Extension | Rescued a captive Derelict 12796 | -6/Extension | Rescued a captive Derelict 12867 | -6/Extension | Rescued a captive Derelict 13179 | -6/Extension | Build established: Scavenger-Skirmisher 13258 | -6/Extension | Spotted B-75 Beast 13266 | -6/Extension | Destroyed B-75 Beast 13300 | -6/Extension | Spotted B-75 Beast 13309 | -6/Extension | Destroyed B-75 Beast 13369 | -6/Extension | Rescued a captive Derelict 13371 | -6/Extension | Rescued A7 13463 | -6/Extension | Rescued a captive Derelict 13844 | -6/Extension | Discovered new exit (range 10) 13845 | -6/Extension | Discovered new exit (range 6) 13852 | -6/Extension | Identified exit to Cetus 13853 | -6/Extension | Build established: Scavenger-Gunner 13866 | -6/Extension | Entered Cetus 13866 | -6/Cetus | Accompanied by 6 allies (A7) 13871 | -6/Cetus | Acquired a Cetus Manufacturing Module code from A7 13892 | -6/Cetus | Spotted Cetus Guard 13892 | -6/Cetus | Spotted Cetus Guard 13895 | -6/Cetus | Spotted Cetus Guard 13900 | -6/Cetus | Spotted Cetus Guard 13900 | -6/Cetus | Destroyed Cetus Guard 13911 | -6/Cetus | Destroyed Cetus Guard 13913 | -6/Cetus | Allies destroyed Cetus Guard 13920 | -6/Cetus | Allies destroyed Cetus Guard 13980 | -6/Cetus | Started Cetus Manufacturing Module 14005 | -6/Cetus | Manufactured an Enhanced Grunt 14030 | -6/Cetus | Manufactured an Enhanced Grunt 14052 | -6/Cetus | Cetus Manufacturing Module disabled 14091 | -6/Cetus | Discovered new exit (range 15) 14131 | -6/Cetus | Spotted Cetus Guard 14131 | -6/Cetus | Spotted Cetus Guard 14137 | -6/Cetus | Spotted Cetus Guard 14137 | -6/Cetus | Spotted Cetus Guard 14148 | -6/Cetus | Destroyed Cetus Guard 14148 | -6/Cetus | Allies destroyed Cetus Guard 14152 | -6/Cetus | Allies destroyed Cetus Guard 14156 | -6/Cetus | Allies destroyed Cetus Guard 14164 | -6/Cetus | Discovered new exit (range 15) 14170 | -6/Cetus | Met Revision 17 14177 | -6/Cetus | Destroyed Revision 17 14241 | -6/Cetus | Identified exit to Archives 14258 | -6/Cetus | Destroyed A7 14262 | -6/Cetus | Extracted ID and sensor layout for unrecognized location from A7's data core 14270 | -6/Cetus | Entered Archives 14270 | -6/Archives | Accompanied by 2 allies 14403 | -6/Archives | Discovered new exit (range 13) 14416 | -6/Archives | Identified exit to Hub_04(d) 14420 | -6/Archives | Entered Hub_04(d) 14420 | -6/Hub_04(d) | Accompanied by 1 ally 14487 | -6/Hub_04(d) | Network Hub disabled 14496 | -6/Hub_04(d) | Incoming investigation squad redirected 14770 | -6/Hub_04(d) | First assault squad dispatched 14786 | -6/Hub_04(d) | Incoming assault squad redirected 14788 | -6/Hub_04(d) | Incoming investigation squad redirected 14814 | -6/Hub_04(d) | Discovered new exit (range 7) 14839 | -6/Hub_04(d) | Identified exit to Factory 14840 | -6/Hub_04(d) | Entered Factory 14840 | -5/Factory | Evolved 2 slots: Utility x2 14990 | -5/Factory | Identified exit to Factory 15819 | -5/Factory | Identified exit to Upper Caves 16517 | -5/Factory | Spotted B-75 Beast 16698 | -5/Factory | Repaired Plasma Rifle 16841 | -5/Factory | Destroyed B-75 Beast 16859 | -5/Factory | Garrison activated, responded to threat 16940 | -5/Factory | First assault squad dispatched 16944 | -5/Factory | Entered Upper Caves 17231 | -5/Upper Caves | Discovered new exit (range 5) 17235 | -5/Upper Caves | Identified exit to Upper Caves 17258 | -5/Upper Caves | Entered another Upper Caves area 17260 | -5/Upper Caves | Attracted the attention of an 0b10 checkpoint 17292 | -5/Upper Caves | Learned Factory emergency access door positions 17559 | -5/Upper Caves | Discovered new exit (range 9) 17567 | -5/Upper Caves | Identified exit to Zhirov 17569 | -5/Upper Caves | Entered Zhirov 17571 | -5/Zhirov | Discovered new exit (range 3) 17593 | -5/Zhirov | Met Zhirov 17615 | -5/Zhirov | Learned location of Quarantine (-3) 17615 | -5/Zhirov | Learned location of Testing (-2) 17615 | -5/Zhirov | Learned location of Command (-1) 17625 | -5/Zhirov | Zhirov requested help retrieving the SGEMP Prototype 17645 | -5/Zhirov | Found Alien Artifact 17645 | -5/Zhirov | Identified Integrated Dissipator 17645 | -5/Zhirov | Installed Integrated Dissipator, increased core heat dissipation (+20) 17664 | -5/Zhirov | Found Alien Artifact 17771 | -5/Zhirov | Identified exit to Proximity Caves 17773 | -5/Zhirov | Entered Proximity Caves 18179 | -4/Proximity Caves | Learned Research terminal intel 18260 | -4/Proximity Caves | Snuck into a huge 0b10 base via the rear entrance 18420 | -4/Proximity Caves | Discovered exit to Factory (range 8) 18439 | -4/Proximity Caves | Lost 3 parts (2u1w) 18805 | -4/Proximity Caves | Entered Factory 18805 | -4/Factory | Accompanied by 2 allies 18805 | -4/Factory | Evolved 2 slots: Propulsion x1, Utility x1 19090 | -4/Factory | Incoming investigation squad redirected 19161 | -4/Factory | Incoming investigation squad redirected 19209 | -4/Factory | Fabricated Exp. Targeting Computer (x1) 19358 | -4/Factory | Repaired Enh. Flexi-carbon Leg 19444 | -4/Factory | Repaired Myomer Leg? 19607 | -4/Factory | Discovered new exit (range 10) 19634 | -4/Factory | Identified exit to Research 19755 | -4/Factory | Identified exit to Upper Caves 19755 | -4/Factory | Identified exit to Armory 19771 | -4/Factory | Incoming investigation squad redirected 20305 | -4/Factory | First assault squad dispatched 20326 | -4/Factory | Incoming assault squad redirected 20345 | -4/Factory | Entered Upper Caves 20683 | -4/Upper Caves | Discovered new exit (range 10) 20691 | -4/Upper Caves | Identified exit to Upper Caves 20693 | -4/Upper Caves | Entered another Upper Caves area 20710 | -4/Upper Caves | Learned 8 Research zone layouts 20812 | -4/Upper Caves | Encountered a Warlord checkpoint 20920 | -4/Upper Caves | Spotted B-86 Titan 21263 | -4/Upper Caves | Discovered new exit (range 8) 21270 | -4/Upper Caves | Identified exit to Warlord 21272 | -4/Upper Caves | Entered Warlord 21312 | -4/Warlord | System corruption cleaned by Quarantine Array 21565 | -4/Warlord | Received a Watcher feed algorithm from an ecstatic Tinkerer 21652 | -4/Warlord | Found Prototype Special Weapon 21653 | -4/Warlord | Identified RU-N14's Throwing Claymores v3 21710 | -4/Warlord | Met Warlord 21721 | -4/Warlord | Opened Warlord's prototype stash 21727 | -4/Warlord | Found Prototype Reactor 21735 | -4/Warlord | Warlord's base attacked by MAIN.C 21746 | -4/Warlord | Found Prototype Hackware 22023 | -4/Warlord | Warlord forces counterattacked 22103 | -4/Warlord | Spotted Striker 22148 | -4/Warlord | Spotted Striker 22247 | -4/Warlord | Discovered new exit (range 15) 22351 | -4/Warlord | Spotted Executioner 22351 | -4/Warlord | Spotted Executioner 22351 | -4/Warlord | Spotted Executioner 22409 | -4/Warlord | Destroyed Executioner 22409 | -4/Warlord | Destroyed Executioner 22410 | -4/Warlord | Warlord base infiltrated, sounded retreat 22435 | -4/Warlord | Lost 3 parts (1u2w) 22466 | -4/Warlord | Spotted Striker 22503 | -4/Warlord | Identified exit to Proximity Caves 22546 | -4/Warlord | Spotted Executioner 22572 | -4/Warlord | Found Corrupted Prototype Processor 22572 | -4/Warlord | Identified Exp. Core Analyzer 22573 | -4/Warlord | System corruption reached 10% 22586 | -4/Warlord | Entered Proximity Caves 22901 | -3/Proximity Caves | Discovered exit to Research (range 10) 22916 | -3/Proximity Caves | Entered Research 22916 | -3/Research | Evolved 2 slots: Power x1, Utility x1 22917 | -3/Research | Identified exit to Quarantine 22918 | -3/Research | Loaded intel: 61 trap records 22919 | -3/Research | Loaded intel: 24 terminal locations 23016 | -3/Research | Found Prototype Launcher 23017 | -3/Research | Identified Adv. Micro-nuke Launcher 23261 | -3/Research | Identified Vortex Chain Reactor 23420 | -3/Research | Spotted B-86 Titan 23434 | -3/Research | Spotted B-90 Cyclops 23463 | -3/Research | Entered Quarantine 23479 | -3/Quarantine | Lost 6 parts (3n2u1w) 23486 | -3/Quarantine | Found Alien Slashing Weapon 23495 | -3/Quarantine | Identified Sigix Broadsword 23520 | -3/Quarantine | Found Alien Artifact 23531 | -3/Quarantine | Found Alien Artifact 23661 | -3/Quarantine | Found Alien Impact Weapon 23879 | -3/Quarantine | Build established: Scavenger-Mutant 23924 | -3/Quarantine | Identified Dimensional Node Initializer 23924 | -3/Quarantine | Identified Transdimensional Reconstructor (x2) 24252 | -3/Quarantine | Discovered new exit (range 16) 24389 | -3/Quarantine | Identified exit to Research 24533 | -3/Quarantine | Build established: Generator-Mutant 24540 | -3/Quarantine | Cryocooling Duct disabled 24555 | -3/Quarantine | Ambient heat levels rising (+20) 24555 | -3/Quarantine | Non-combat units ordered to evacuate 24588 | -3/Quarantine | Found Alien Artifact 24588 | -3/Quarantine | Identified Core Reset Matrix 24588 | -3/Quarantine | Identified Core Stripper 24588 | -3/Quarantine | Used Core Reset Matrix 24592 | -3/Quarantine | Detected hypermatrix surge 24592 | -3/Quarantine | Sensed 7 artifacts in vicinity 24728 | -3/Quarantine | Spotted Fortress 24744 | -3/Quarantine | Destroyed Fortress 24750 | -3/Quarantine | Found Vortex Chain Reactor 24755 | -3/Quarantine | Found Prototype Device 24755 | -3/Quarantine | Identified Exp. Force Field 24762 | -3/Quarantine | Found Prototype Device 24762 | -3/Quarantine | Identified Exp. EM Disruption Field 24845 | -3/Quarantine | Discovered new exit (range 5) 24848 | -3/Quarantine | Identified exit to Section 7 24849 | -3/Quarantine | Entered Section 7 24850 | -3/Section 7 | Sensed 23 artifacts in vicinity 24919 | -3/Section 7 | Found Integrated Reactor 24919 | -3/Section 7 | Installed Integrated Reactor, increased core energy generation (+10) 24925 | -3/Section 7 | Discovered exit to Research (range 4) 25038 | -3/Section 7 | Found Integrated Dissipator 25038 | -3/Section 7 | Installed Integrated Dissipator, increased core heat dissipation (+20) 25130 | -3/Section 7 | Spotted B-86 Titan 25149 | -3/Section 7 | First assault squad dispatched 25164 | -3/Section 7 | Incoming assault squad redirected 25217 | -3/Section 7 | Warped through subspace 25396 | -3/Section 7 | Spotted Executioner 25398 | -3/Section 7 | Spotted Executioner 25418 | -3/Section 7 | Destroyed Executioner 25439 | -3/Section 7 | Destroyed Executioner 25464 | -3/Section 7 | Found Exp. Core Analyzer 25476 | -3/Section 7 | Lost 9 parts (2p2n3u2w) 25477 | -3/Section 7 | Found Exp. Targeting Computer 25483 | -3/Section 7 | Found Exp. Core Analyzer 25525 | -3/Section 7 | Found Transdimensional Reconstructor 25527 | -3/Section 7 | Found Hpw. Transdimensional Reconstructor 25531 | -3/Section 7 | Found Transdimensional Reconstructor 25535 | -3/Section 7 | Found Transdimensional Reconstructor 25619 | -3/Section 7 | Integrated with Sigix Exoskeleton 25625 | -3/Section 7 | Incoming assault squad redirected 25679 | -3/Section 7 | Found Sigix Sheargun 25680 | -3/Section 7 | Found Sigix Sheargun 25706 | -3/Section 7 | Spotted B-99 Colossus 25719 | -3/Section 7 | Found Integrated Reactor 25719 | -3/Section 7 | Installed Integrated Reactor, increased core energy generation (+10) 25721 | -3/Section 7 | Found Integrated Reactor 25721 | -3/Section 7 | Installed Integrated Reactor, increased core energy generation (+10) 25723 | -3/Section 7 | Found Integrated Reactor 25723 | -3/Section 7 | Installed Integrated Reactor, increased core energy generation (+10) 25813 | -3/Section 7 | Core integrity fell below 50% 25858 | -3/Section 7 | Spotted Investigator 25860 | -3/Section 7 | Scanned by Researcher 25861 | -3/Section 7 | Intercept squad dispatched 25862 | -3/Section 7 | Spotted Tracker 25862 | -3/Section 7 | Spotted Tracker 25863 | -3/Section 7 | Destroyed Investigator 25864 | -3/Section 7 | Spotted Combat Programmer 25865 | -3/Section 7 | Spotted Combat Programmer 25882 | -3/Section 7 | Sigix Exoskeleton integrity reduced to 80% 25883 | -3/Section 7 | Entered Research 25883 | -2/Research | Warlord forces began assault on 0b10 25883 | -2/Research | Evolved 2 slots: Utility x1, Weapon x1 25888 | -2/Research | Emitted hypermatrix ping 25893 | -2/Research | Assembled emerged from beneath the floor 25924 | -2/Research | Build established: Alien-Sigix 25962 | -2/Research | Identified System Mapper 25978 | -2/Research | Assembled emerged from beneath the floor 25993 | -2/Research | Discovered new exit (range 18) 25993 | -2/Research | Research machine network offline 26027 | -2/Research | Assembled emerged from beneath the floor 26088 | -2/Research | Assembled emerged from beneath the floor 26119 | -2/Research | Discovered new exit (range 18) 26143 | -2/Research | Spotted Tracker 26144 | -2/Research | Spotted Tracker 26151 | -2/Research | Spotted Combat Programmer 26153 | -2/Research | Spotted Executioner 26154 | -2/Research | Spotted Executioner 26158 | -2/Research | Identified exit to Access 26176 | -2/Research | Destroyed Tracker 26180 | -2/Research | Found Exp. Targeting Computer 26189 | -2/Research | Assembled emerged from beneath the floor 26191 | -2/Research | Spotted Combat Programmer 26198 | -2/Research | Destroyed Combat Programmer 26204 | -2/Research | Destroyed Combat Programmer 26244 | -2/Research | Borebot progress halted 26262 | -2/Research | Discovered new exit (range 18) 26271 | -2/Research | Identified exit to Testing 26275 | -2/Research | Entered Testing 26322 | -2/Testing | Found Prototype Device 26348 | -2/Testing | Discovered exit to Access (range 17) 26355 | -2/Testing | Spotted PH-E8NV53FAWF 26357 | -2/Testing | Spotted Alpha 7 26387 | -2/Testing | Spotted Striker 26387 | -2/Testing | Spotted Striker 26423 | -2/Testing | Found Prototype Energy Cannon 26423 | -2/Testing | Identified Null Cannon 26482 | -2/Testing | Entered Access 26482 | -1/Access | Evolved 2 slots: Utility x2 26487 | -1/Access | Emitted hypermatrix ping 26492 | -1/Access | Assembled emerged from beneath the floor 26520 | -1/Access | Spotted B-99 Colossus 26530 | -1/Access | Assembled emerged from beneath the floor 26545 | -1/Access | Destroyed B-99 Colossus 26569 | -1/Access | Assembled emerged from beneath the floor 26598 | -1/Access | Discovered new exit (range 18) 26684 | -1/Access | Spotted Striker 26725 | -1/Access | Destroyed Striker 26751 | -1/Access | Assembled emerged from beneath the floor 26768 | -1/Access | Discovered new exit (range 17) 26770 | -1/Access | Found Prototype Hackware 26779 | -1/Access | Spotted B-99 Colossus 26779 | -1/Access | Spotted B-99 Colossus 26783 | -1/Access | Entered Command 26788 | -1/Command | Emitted hypermatrix ping 26793 | -1/Command | Assembled emerged from beneath the floor 26796 | -1/Command | Assembled emerged from beneath the floor 26835 | -1/Command | Spotted Combat Programmer 26835 | -1/Command | Spotted M Guard 26836 | -1/Command | Spotted Combat Programmer 26849 | -1/Command | Destroyed M Guard 26854 | -1/Command | Spotted M Guard 26869 | -1/Command | Destroyed M Guard 26874 | -1/Command | Destroyed Combat Programmer 26879 | -1/Command | Destroyed Combat Programmer 26879 | -1/Command | All MAIN.C guards destroyed 26896 | -1/Command | Found Prototype Device 26896 | -1/Command | Identified AEGIS Remote Shield 26906 | -1/Command | Found Prototype Reactor 26907 | -1/Command | Identified Zero-point Reactor 26951 | -1/Command | Met MAIN.C 26952 | -1/Command | 0b10 Conduit disabled 26980 | -1/Command | MAIN.C's shell transforms into a squad of autonomous robots 26980 | -1/Command | Destroyed MAIN.C Shell 26980 | -1/Command | Spotted M Shell/Def 26980 | -1/Command | Spotted M Shell/Atk 26980 | -1/Command | Spotted M Shell/Def 26980 | -1/Command | Spotted M Shell/Atk 26980 | -1/Command | Spotted M Shell/Atk 26980 | -1/Command | Spotted M Shell/Def 26980 | -1/Command | Spotted M Shell/Atk 26980 | -1/Command | Spotted M Shell/Def 26983 | -1/Command | MAIN.C activated Command garrisons 26984 | -1/Command | Destroyed M Shell/Def 27001 | -1/Command | Destroyed M Shell/Atk 27007 | -1/Command | Sigix Exoskeleton integrity reduced to 60% 27025 | -1/Command | Sigix Exoskeleton integrity reduced to 40% 27025 | -1/Command | Core integrity fell below 50% 27047 | -1/Command | System corruption reached 10% 27054 | -1/Command | Destroyed M Shell/Def 27060 | -1/Command | Sigix Exoskeleton integrity reduced to 20% 27079 | -1/Command | Core integrity fell below 20% 27079 | -1/Command | Exoskeleton Destroyed Last Messages --------------- 27062_ Penetrated by Slug. 27063_ Acquired Sigix Sheargun. 27065_ Quantum Shear penetrates MAIN.C. 27065_ Quantum Shear penetrates 0b10 Conduit. 27065_ Quantum Shear penetrates MAIN.C. 27065_ H-88 Terminator destroyed. 27065_ Penetrated by Slug. 27067_ Knocked back. 27069_ Quantum Shear penetrates MAIN.C. 27072_ Penetrated by Slug. 27072_ Quantum Shear penetrates MAIN.C. 27075_ Quantum Shear penetrates 0b10 Conduit. 27075_ Quantum Shear penetrates MAIN.C. 27075_ Knocked back. 27075_ Penetrated by Slug. 27076_ Knocked back. 27077_ Quantum Shear penetrates MAIN.C. 27078_ Penetrated by Slug. 27079_ Knocked back. 27079_ Sigix Exoskeleton destroyed. Map ----- +----------------------------------------------------+ | ?????????????????????????????????????????????????? | | ?????????????????????????????????????????????????? | | ?????????????????????????????????????????????????? | | ?????????????????????????????????????????????????? | | ?????????????????????????????????????????????????? | | ??????????????????????????????#??????????????????? | | ?????????????????????????############??#??#???#??? | | ??????????????????????############################ | | ????????????????????############################## | | ???????????????????############################### | | ?????????????????################################# | | ????????????????################################## | | ??????????????#################################### | | ?????????????##################################### | | ???????????####################################### | | ??????????######################################## | | ????????########################################## | | ???????#################### ###################### | | ??????############################################ | | ?????##""""""" """" ###################### | | ?????##"" "" ;##################### | | ????###""""" "" ###################### | | ???####""""""""""" ; | | ???####" " " / | | ???####"" """"" %! %*%gx hh hlh | | ??#####"" """""" % !!!X=%################### | | ??##### " """" !%%!!%%%################## | | ??##### !]=* !!!h%[################### | | ??##### =!!!%==]!%!!%################## | | ??#####"""""""" !%[[! % %%%# #################/// | | ? #####"" ]!!=* % ###################!!! | | ??##### * p =% ###################! ! | | ??##### " M =%%%################# # *! | | ??##### " YY!Y!################### ! | | ?? """ " " i%!!################### | | ?? """ """ " %!!! ################ # | | ??? """ " " !%=###################### | | ???#### """""" "" |%%###################### | | ???#### " """ ""% "###################### | | ????### """ " " % !% ###################### | | ????############################################## | | ????############################################## | | ?????############################################# | | ??????############################################ | | ??????############################################ | | ??????############################################ | | ???????########################################### | | ????????########################################## | | ????????########################################## | | ?????????######################################### | +----------------------------------------------------+ Best States ------------- Heat Dissipation 176 Energy Generation 110 Energy Capacity 1450 Matter Stores 300 Matter Capacity 300 Sight Range 16 Robot Scan Range 20 Terrain Scan Density 10 Jamming Range 16 Armor Coverage 450 Resistance: KI 50 Resistance: TH 50 Resistance: EX 50 Resistance: EM 75 Resistance: I 50 Resistance: S 50 Resistance: P 50 Evasion (%) 69 Targeting Accuracy 12 Target Analysis 8 Core Analysis 12 Particle Charging 25 Offensive Hacking 20 Item Schematics ----------------- Exp. Shield Generator | -3/Section 7 | Archive Adv. Matter Compressor | -3/Section 7 | Archive Prc. Matter Filter | -3/Section 7 | Archive System Purifier | -3/Section 7 | Archive Hdn. Centrium Wheel | -3/Section 7 | Archive Robot Schematics ------------------ None Fabricated ------------ Exp. Targeting Computer | x1 | -4/Factory Alien Tech Used ----------------- Core Expander Integrated Dissipator Sigix Broadsword Core Reset Matrix Core Stripper Integrated Reactor Transdimensional Reconstructor Sigix Exoskeleton Sigix Sheargun Achievements -------------- None Challenges ------------ None Game ------ Seed CooledBehemothBiocell Manual? 0 Play Time 03:31:17 Cumulative 1469.7 hours Start 2022.03.06 @ 17:35:56 End 2022.03.07 @ 17:44:13 Sessions 1 Manual Loads 0 Difficulty Rogue Special Mode None Game No. 515 Rogue 515 Adventurer 0 Explorer 0 Win Type - Total 104 Types 22/12/43/6/1/2/16/1/1 Lore% 96 Gallery% 96 Achievement% 86 Wizard Run 0 Options --------- ASCII 0 Keyboard 0 Movement Numpad Keybinds 0 Fullscreen 1 Font 18/SmallcapsGlow Map View 76x50 Tactical HUD 1 Map Filters NONE Filters NONE Steam 1 RUN: 5bad7432-e5ca-47ff-a888-f9301c499316